[Event "Régional Jeunes Occitanie 2024"]
[Site "L'Isle Jourdain, France"]
[Date "2024.02.24"]
[Round "7.6"]
[White "MORALES, Maxime"]
[Black "WITTMANN, Paul"]
[Result "0-1"]
[TimeControl "1h30 + 30s/cps"]
[WhiteElo "1303"]
[BlackElo "1536"]

1. d4 {[%clk 01:30:58]} Nf6 {[%clk 01:29:59]} 2. Nf3 {[%clk 01:31:23]} g6
{[%clk 01:29:47]} 3. c4 {[%clk 01:31:45]} Bg7 {[%clk 01:28:59]} 4. Nc3 {[%clk
01:31:31]} d6 {[%clk 01:27:36]} 5. e4 {[%clk 01:30:39]} O-O {[%clk 01:26:51]} 6.
Be2 {[%clk 01:30:10]} e5 {[%clk 01:26:11]} 7. O-O {[%clk 01:29:17]} Nc6 {[%clk
01:25:29]} 8. d5 {[%clk 01:27:25]} Ne7 {[%clk 01:21:15]} 9. Ne1 {[%clk
01:25:03]} Ne8 {[%clk 01:17:39]} 10. Be3 {[%clk 01:24:00]} f5 {[%clk 01:17:36]}
11. f3 {[%clk 01:24:18]} f4 {[%clk 01:17:49]} 12. Bf2 {[%clk 01:24:39]} g5
{[%clk 01:14:25]} 13. Nd3 {[%clk 01:21:41]} h5 {[%clk 01:07:46]} 14. b4 {[%clk
01:17:35]} Rf6 {[%clk 01:04:19]} 15. c5 {[%clk 01:13:54]} Rg6 {[%clk 01:02:45]}
16. b5 {[%clk 01:08:22]} g4 {[%clk 00:54:50]} 17. a4 {[%clk 00:58:23]} Kh7
{[%clk 00:45:55]} 18. Bh4 {[%clk 00:46:03]} {[%emt 00:02:01]} Bf6 {[%clk
00:44:15]} {[%emt 00:02:11]} 19. Bxf6 {[%clk 00:45:27]} {[%emt 00:01:07]} Nxf6
{[%clk 00:44:37]} {[%emt 00:00:08]} 20. Re1 {[%clk 00:44:49]} {[%emt 00:01:08]}
h4 {[%clk 00:43:40]} {[%emt 00:01:27]} 21. Bf1 {[%clk 00:42:30]} {[%emt
00:02:48]} h3 {[%clk 00:38:31]} {[%emt 00:05:38]} 22. Kf2 {[%clk 00:34:36]}
{[%emt 00:08:25]} g3+ {[%clk 00:33:44]} {[%emt 00:05:17]} 23. hxg3 {[%clk
00:26:45]} {[%emt 00:10:20]} h2 {[%clk 00:33:17]} 24. Be2 {[%clk 00:26:43]}
Rxg3 {[%clk 00:33:39]} 25. Rh1 {[%clk 00:26:03]} {[%emt 00:00:47]} Rxg2+ {[%clk
00:33:56]} {[%emt 00:00:13]} 26. Kxg2 {[%clk 00:25:05]} {[%emt 00:01:29]} Qg8+
{[%clk 00:34:21]} {[%emt 00:00:05]} 27. Kf1 {[%clk 00:23:34]} {[%emt 00:06:17]}
Qg3 {[%clk 00:33:13]} 28. Rxh2+ {[%clk 00:23:04]} Qxh2 {[%clk 00:33:29]} 29.
Ke1 {[%clk 00:22:24]} Qg1+ {[%clk 00:32:28]} {[%emt 00:01:16]} 30. Kd2 {[%clk
00:22:42]} {[%emt 00:00:12]} Qe3+ {[%clk 00:32:55]} {[%emt 00:00:04]} 31. Kc2
{[%clk 00:22:57]} {[%emt 00:00:14]} a6 {[%clk 00:29:28]} {[%emt 00:03:57]} 32.
Qh1+ {[%clk 00:21:12]} {[%emt 00:02:13]} Kg7 {[%clk 00:28:56]} {[%emt
00:01:04]} 33. Qg1+ {[%clk 00:21:36]} {[%emt 00:00:06]} Qxg1 {[%clk 00:29:15]}
{[%emt 00:00:11]} 34. Rxg1+ {[%clk 00:22:00]} {[%emt 00:00:05]} Kf7 {[%clk
00:29:35]} {[%emt 00:00:10]} 35. cxd6 {[%clk 00:21:32]} {[%emt 00:00:58]} cxd6
{[%clk 00:29:49]} {[%emt 00:00:16]} 36. Nf2 {[%clk 00:21:12]} {[%emt 00:00:50]}
Nh5 {[%clk 00:26:50]} {[%emt 00:03:29]} 37. Bc4 {[%clk 00:19:28]} {[%emt
00:02:14]} b6 {[%clk 00:21:46]} {[%emt 00:05:35]} 38. Rh1 {[%clk 00:17:27]}
{[%emt 00:02:29]} Nf6 {[%clk 00:19:01]} {[%emt 00:06:50]} 39. Rh8 {[%clk
00:15:55]} Neg8 {[%clk 00:19:20]} 40. Kb3 {[%clk 00:15:01]} {[%emt 00:00:02]}
a5 {[%clk 00:19:28]} {[%emt 00:00:22]} 41. Bf1 {[%clk 00:14:23]} {[%emt
00:01:08]} Kg6 {[%clk 00:17:11]} {[%emt 00:06:48]} 42. Rh1 {[%clk 00:14:21]}
Nh5 {[%clk 00:17:01]} 43. Rg1+ {[%clk 00:14:13]} Kf7 {[%clk 00:17:22]} 44. Nb1
{[%clk 00:13:56]} Bd7 {[%clk 00:15:34]} {[%emt 00:01:04]} 45. Nd2 {[%clk
00:14:03]} {[%emt 00:00:23]} Rb8 {[%clk 00:15:03]} {[%emt 00:01:01]} 46. Nc4
{[%clk 00:14:15]} {[%emt 00:00:17]} Ke7 {[%clk 00:15:15]} {[%emt 00:00:18]} 47.
Bg2 {[%clk 00:12:47]} {[%emt 00:01:58]} Ng3 {[%clk 00:14:19]} {[%emt 00:01:26]}
48. Bf1 {[%clk 00:12:12]} {[%emt 00:01:05]} Nf6 {[%clk 00:14:29]} {[%emt
00:00:21]} 49. Bd3 {[%clk 00:11:50]} {[%emt 00:00:52]} Be8 {[%clk 00:13:04]}
{[%emt 00:01:54]} 50. Nh1 {[%clk 00:11:36]} {[%emt 00:00:44]} Nfh5 {[%clk
00:12:02]} {[%emt 00:01:32]} 51. Nd2 {[%clk 00:10:03]} {[%emt 00:02:03]} Bd7
{[%clk 00:09:42]} {[%emt 00:08:35]} 52. Nf1 {[%clk 00:09:08]} Rg8 {[%clk
00:09:40]} 53. Nfxg3 {[%clk 00:07:51]} Nxg3 {[%clk 00:10:04]} 54. Nxg3 {[%clk
00:08:11]} Rxg3 {[%clk 00:10:24]} 55. Rxg3 {[%clk 00:08:23]} fxg3 {[%clk
00:10:49]} 56. Bf1 {[%clk 00:08:46]} Kf6 {[%clk 00:10:56]} 57. Kc2 {[%clk
00:08:43]} Kg5 {[%clk 00:11:12]} {[%emt 00:00:06]} 58. Kd2 {[%clk 00:08:52]}
{[%emt 00:00:20]} Kf4 {[%clk 00:09:53]} {[%emt 00:01:50]} 59. Ke2 {[%clk
00:08:22]} {[%emt 00:01:00]} Be8 {[%clk 00:10:05]} {[%emt 00:00:17]} 60. Bh3
{[%clk 00:07:43]} {[%emt 00:01:07]} g2 {[%clk 00:07:57]} {[%emt 00:21:54]} 61.
Bxg2 {[%clk 00:06:57]} Kg3 {[%clk 00:08:21]} 62. Kf1 {[%clk 00:07:20]} Bh5
{[%clk 00:08:37]} 63. f4 {[%clk 00:01:55]} Kxf4 {[%clk 00:08:59]} 64. Ke1
{[%clk 00:01:58]} Bf3 {[%clk 00:09:09]} 65. Bf1 {[%clk 00:01:37]} Bxe4 {[%clk
00:09:25]} 66. Bc4 {[%clk 00:01:56]} Ke3 {[%clk 00:09:34]} 67. Bb3 {[%clk
00:01:54]} Kd4 {[%clk 00:09:56]} 68. Kd2 {[%clk 00:02:04]} Bxd5 {[%clk
00:10:21]} 69. Bd1 {[%clk 00:01:33]} Bc4 {[%clk 00:10:39]} 70. Kc2 {[%clk
00:01:29]} e4 {[%clk 00:10:31]} 71. Kc1 {[%clk 00:01:04]} e3 {[%clk 00:10:19]}
72. Bc2 {[%clk 00:01:16]} Kc3 {[%clk 00:10:25]} 73. Kd1 {[%clk 00:01:21]} e2+
{[%clk 00:10:32]} 74. Kc1 {[%clk 00:01:36]} e1=Q+ {[%clk 00:10:49]} 75. Bd1
{[%clk 00:01:59]} Qd2+ {[%clk 00:11:08]} 0-1

[Event "Régional Jeunes Occitanie 2024"]
[Site "L'Isle Jourdain, France"]
[Date "2024.02.24"]
[Round "7.2"]
[White "BEUCHER, Gauthier"]
[Black "COLLAS, Anthony"]
[Result "1-0"]
[TimeControl "1h30 + 30s/cps"]
[WhiteElo "1484"]
[BlackElo "1439"]

1. e4 {[%clk 01:30:55]} e5 {[%clk 01:30:57]} 2. Nf3 {[%clk 01:31:02]} Nc6
{[%clk 01:31:23]} 3. Bc4 {[%clk 01:31:08]} Nf6 {[%clk 01:31:46]} 4. d3 {[%clk
01:31:16]} Bc5 {[%clk 01:32:06]} 5. c3 {[%clk 01:31:13]} d5 {[%clk 01:19:57]} 6.
exd5 {[%clk 01:28:14]} Nxd5 {[%clk 01:19:29]} 7. Qb3 {[%clk 01:28:28]} O-O
{[%clk 01:04:51]} 8. Bxd5 {[%clk 01:26:39]} Na5 {[%clk 01:04:46]} 9. Bxf7+
{[%clk 01:22:32]} Rxf7 {[%clk 01:05:04]} 10. Qc2 {[%clk 01:21:21]} Nc6 {[%clk
01:03:17]} 11. O-O {[%clk 01:21:19]} Bf5 {[%clk 01:03:15]} 12. Rd1 {[%clk
01:17:38]} Rd7 {[%clk 00:57:04]} 13. Qb3+ {[%clk 01:08:09]} Kh8 {[%clk
00:55:29]} 14. Qxb7 {[%clk 01:02:10]} Rxd3 {[%clk 00:46:52]} 15. Rxd3 {[%clk
01:01:06]} Bxd3 {[%clk 00:47:07]} 16. Qxc6 {[%clk 00:59:26]} Bxb1 {[%clk
00:46:06]} 17. h3 {[%clk 00:59:27]} e4 {[%clk 00:44:02]} 18. Ne5 {[%clk
00:57:52]} Qf8 {[%clk 00:41:05]} 19. Nf7+ {[%clk 00:52:27]} {[%emt 00:01:31]}
Kg8 {[%clk 00:40:22]} {[%emt 00:01:14]} 20. Rxb1 {[%clk 00:51:43]} {[%emt
00:01:14]} Bxf2+ {[%clk 00:39:22]} {[%emt 00:01:30]} 21. Kxf2 {[%clk 00:51:25]}
{[%emt 00:00:48]} Qxf7+ {[%clk 00:39:44]} {[%emt 00:00:08]} 22. Kg1 {[%clk
00:51:28]} {[%emt 00:00:26]} Rf8 {[%clk 00:38:11]} {[%emt 00:02:04]} 23. Be3
{[%clk 00:50:53]} {[%emt 00:01:04]} h6 {[%clk 00:35:47]} {[%emt 00:02:54]} 24.
c4 {[%emt 00:03:16]} 1-0

[Event "Régional Jeunes Occitanie 2024"]
[Site "L'Isle Jourdain, France"]
[Date "2024.02.24"]
[Round "7.3"]
[White "LAVILLEDIEU, Lily-Mei"]
[Black "DUCES-AKHVERDOFF, Gabriel"]
[Result "1/2-1/2"]
[TimeControl "1h30 + 30s/cps"]
[WhiteElo "1619"]
[BlackElo "1797"]

1. d4 {[%clk 01:30:13]} Nf6 {[%clk 01:30:35]} 2. c4 {[%clk 01:30:36]} e6 {[%clk
01:30:55]} 3. Nc3 {[%clk 01:30:59]} Bb4 {[%clk 01:31:20]} 4. Qc2 {[%clk
01:31:24]} O-O {[%clk 01:31:40]} 5. Nf3 {[%clk 01:31:43]} d5 {[%clk 01:31:21]}
6. e3 {[%clk 01:31:54]} c5 {[%clk 01:23:51]} 7. Bd3 {[%clk 01:22:51]} dxc4
{[%clk 01:22:31]} 8. Bxc4 {[%clk 01:21:58]} cxd4 {[%clk 01:17:47]} 9. exd4
{[%clk 01:16:05]} b6 {[%clk 01:12:11]} 10. a3 {[%clk 01:00:02]} Be7 {[%clk
01:09:32]} 11. Bf4 {[%clk 00:53:39]} Bb7 {[%clk 01:03:41]} 12. O-O-O {[%clk
00:46:05]} Nd5 {[%clk 00:57:32]} 13. Nxd5 {[%clk 00:41:48]} Bxd5 {[%clk
00:57:14]} 14. Bd3 {[%clk 00:40:33]} h6 {[%clk 00:53:16]} 15. Qd2 {[%clk
00:36:00]} {[%emt 00:01:49]} Nd7 {[%clk 00:44:28]} {[%emt 00:09:19]} 16. Kb1
{[%clk 00:33:28]} {[%emt 00:03:02]} Rc8 {[%clk 00:32:56]} {[%emt 00:12:02]} 17.
Rhe1 {[%clk 00:31:39]} {[%emt 00:02:19]} Bxf3 {[%clk 00:30:01]} {[%emt
00:03:24]} 18. gxf3 {[%clk 00:31:13]} {[%emt 00:00:57]} Bg5 {[%clk 00:30:17]}
{[%emt 00:00:14]} 19. Bxg5 {[%clk 00:30:32]} {[%emt 00:07:30]} Qxg5 {[%clk
00:30:35]} 20. Qxg5 {[%clk 00:30:33]} hxg5 {[%clk 00:30:56]} 21. Rc1 {[%clk
00:30:14]} Nf6 {[%clk 00:29:21]} 1/2-1/2

[Event "Régional Jeunes Occitanie 2024"]
[Site "L'Isle Jourdain, France"]
[Date "2024.02.24"]
[Round "7.8"]
[White "GRAND, Theophile"]
[Black "VALMIR, Clovis"]
[Result "0-1"]
[TimeControl "1h30 + 30s/cps"]
[WhiteElo "1325"]
[BlackElo "1390"]

1. c4 {[%clk 01:30:58]} {[%emt 00:00:17]} Nf6 {[%clk 01:30:14]} 2. g3 {[%clk
01:31:13]} c6 {[%clk 01:29:47]} 3. Nf3 {[%clk 01:31:06]} d6 {[%clk 01:29:47]} 4.
Bg2 {[%clk 01:29:48]} e5 {[%clk 01:28:29]} 5. Nc3 {[%clk 01:28:49]} Be7 {[%clk
01:27:08]} 6. O-O {[%clk 01:27:48]} Be6 {[%clk 01:26:07]} 7. b3 {[%clk
01:25:34]} Nbd7 {[%clk 01:24:11]} 8. d4 {[%clk 01:23:33]} Qc7 {[%clk 01:22:05]}
9. e4 {[%clk 01:19:52]} Bg4 {[%clk 01:17:34]} 10. Be3 {[%clk 01:15:41]} d5
{[%clk 01:07:03]} 11. Qd3 {[%clk 01:10:45]} dxe4 {[%clk 00:58:53]} 12. Nxe4
{[%clk 01:10:32]} O-O-O {[%clk 00:58:38]} 13. d5 {[%clk 01:03:14]} Nxe4 {[%clk
00:56:53]} 14. Qxe4 {[%clk 01:02:29]} f5 {[%clk 00:57:14]} 15. Qb1 {[%clk
01:00:40]} f4 {[%clk 00:56:04]} 16. Bd2 {[%clk 01:00:02]} Bf6 {[%clk 00:55:54]}
17. dxc6 {[%clk 00:56:15]} bxc6 {[%clk 00:55:41]} 18. Bc3 {[%clk 00:56:04]}
Rde8 {[%clk 00:51:00]} 19. Nd2 {[%clk 00:52:11]} e4 {[%clk 00:50:08]} 20. Bxf6
{[%clk 00:51:05]} Nxf6 {[%clk 00:50:32]} 21. Re1 {[%clk 00:46:48]} e3 {[%clk
00:48:41]} {[%emt 00:02:03]} 22. fxe3 {[%clk 00:44:12]} {[%emt 00:03:06]} fxg3
{[%clk 00:48:58]} {[%emt 00:00:12]} 23. hxg3 {[%clk 00:43:27]} {[%emt
00:01:15]} Qxg3 {[%clk 00:48:24]} {[%emt 00:01:04]} 24. Nf1 {[%clk 00:43:31]}
{[%emt 00:00:26]} Qc7 {[%clk 00:44:49]} {[%emt 00:04:04]} 25. e4 {[%clk
00:41:50]} {[%emt 00:02:13]} Qb6+ {[%clk 00:42:11]} {[%emt 00:03:07]} 26. Kh1
{[%clk 00:40:49]} {[%emt 00:03:27]} Re5 {[%clk 00:41:34]} 27. Qd3 {[%clk
00:38:01]} {[%emt 00:02:29]} Rh5+ {[%clk 00:41:30]} {[%emt 00:00:35]} 28. Nh2
{[%clk 00:36:51]} {[%emt 00:01:41]} Qc7 {[%clk 00:40:08]} {[%emt 00:01:50]} 29.
e5 {[%clk 00:37:01]} {[%emt 00:00:20]} Bf5 {[%clk 00:40:13]} {[%emt 00:00:25]}
30. Qf3 {[%clk 00:34:12]} {[%emt 00:03:17]} Ng4 {[%clk 00:40:28]} {[%emt
00:00:17]} 31. Bh3 {[%clk 00:34:00]} {[%emt 00:00:42]} Rxh3 {[%clk 00:40:14]}
{[%emt 00:00:45]} 32. Qxf5+ {[%clk 00:34:01]} {[%emt 00:07:14]} Qd7 {[%clk
00:40:39]} 33. Qxd7+ {[%clk 00:31:57]} Kxd7 {[%clk 00:41:04]} 34. Rad1+ {[%clk
00:32:00]} Kc7 {[%clk 00:40:33]} 35. Re2 {[%clk 00:31:29]} Rf8 {[%clk
00:40:37]} 36. Kg1 {[%clk 00:29:37]} {[%emt 00:01:16]} Rg3+ {[%clk 00:40:43]}
{[%emt 00:00:24]} 37. Rg2 {[%clk 00:28:06]} {[%emt 00:07:12]} Rxg2+ {[%clk
00:41:09]} 38. Kxg2 {[%clk 00:28:28]} Ne3+ {[%clk 00:41:36]} 0-1

[Event "Régional Jeunes Occitanie 2024"]
[Site "L'Isle Jourdain, France"]
[Date "2024.02.24"]
[Round "7.7"]
[White "MARTINEZ, Julien"]
[Black "BAUER, Pierre"]
[Result "0-1"]
[TimeControl "1h30 + 30s/cps"]
[WhiteElo "1556"]
[BlackElo "1765"]

1. d4 {[%clk 01:30:59]} {[%emt 00:00:25]} Nf6 {[%clk 01:30:29]} 2. Bf4 {[%clk
01:31:23]} g6 {[%clk 01:30:52]} 3. e3 {[%clk 01:31:31]} d6 {[%clk 01:31:08]} 4.
Nf3 {[%clk 01:31:44]} Nh5 {[%clk 01:31:06]} 5. Bg5 {[%clk 01:32:03]} Bg7 6. Be2
{[%clk 01:32:17]} c5 {[%clk 01:30:37]} 7. c3 {[%clk 01:31:53]} Nd7 {[%clk
01:27:10]} 8. O-O {[%clk 01:31:29]} h6 {[%clk 01:26:32]} 9. Bh4 {[%clk
01:31:07]} g5 {[%clk 01:23:18]} 10. Nfd2 {[%clk 01:27:29]} Nhf6 {[%clk
01:20:16]} 11. Bg3 {[%clk 01:27:25]} Rb8 {[%clk 01:13:55]} 12. Na3 {[%clk
01:24:16]} b6 {[%clk 01:11:58]} 13. Bf3 {[%clk 01:18:47]} O-O {[%clk 01:05:34]}
14. Nac4 {[%clk 01:15:36]} Ba6 {[%clk 00:59:37]} 15. Re1 {[%clk 01:14:02]} Qc7
{[%clk 00:57:39]} 16. a4 {[%clk 01:09:04]} Bxc4 {[%clk 00:49:50]} 17. Nxc4
{[%clk 01:09:22]} cxd4 {[%clk 00:49:49]} 18. Na3 {[%clk 00:54:22]} dxe3 {[%clk
00:46:22]} 19. Rxe3 {[%clk 00:53:43]} Nc5 {[%clk 00:42:12]} 20. Nb5 {[%clk
00:50:43]} {[%emt 00:03:04]} Qd7 {[%clk 00:41:52]} {[%emt 00:00:48]} 21. Qe2
{[%clk 00:43:01]} {[%emt 00:08:15]} g4 {[%clk 00:41:01]} {[%emt 00:01:21]} 22.
Bxg4 {[%clk 00:41:09]} {[%emt 00:02:22]} Qxg4 {[%clk 00:39:12]} {[%emt
00:02:18]} 23. f3 {[%clk 00:40:00]} {[%emt 00:02:47]} Qg6 {[%clk 00:37:27]}
{[%emt 00:00:54]} 24. Rxe7 {[%clk 00:37:46]} {[%emt 00:02:56]} a6 {[%clk
00:27:50]} {[%emt 00:15:44]} 25. Nxd6 {[%clk 00:36:12]} Nh5 {[%clk 00:27:38]}
26. Ne4 {[%clk 00:19:47]} {[%emt 00:14:05]} Nxe4 {[%clk 00:26:20]} {[%emt
00:01:47]} 27. Bxb8 {[%clk 00:19:31]} {[%emt 00:00:47]} Nxc3 {[%clk 00:23:28]}
{[%emt 00:03:22]} 28. bxc3 {[%clk 00:19:25]} {[%emt 00:00:36]} Rxb8 {[%clk
00:21:50]} {[%emt 00:02:08]} 29. Qd2 {[%clk 00:17:04]} {[%emt 00:02:51]} Bf6
{[%clk 00:19:04]} {[%emt 00:03:16]} 30. Re4 {[%clk 00:14:38]} {[%emt 00:02:56]}
Kh7 {[%clk 00:16:00]} {[%emt 00:03:33]} 31. Rg4 {[%clk 00:10:23]} {[%emt
00:05:46]} Qf5 {[%clk 00:15:33]} 32. Rc4 {[%clk 00:03:49]} {[%emt 00:08:19]}
Rd8 {[%clk 00:12:29]} {[%emt 00:02:15]} 33. Qa2 {[%clk 00:03:55]} {[%emt
00:00:25]} Be5 {[%clk 00:11:05]} {[%emt 00:01:53]} 34. Re1 {[%clk 00:03:22]}
{[%emt 00:01:03]} Qg5 {[%clk 00:10:18]} {[%emt 00:01:17]} 35. Rg4 {[%clk
00:03:02]} {[%emt 00:00:50]} Qf6 {[%clk 00:08:59]} {[%emt 00:01:49]} 36. Qb1+
{[%clk 00:02:46]} {[%emt 00:00:47]} Kh8 {[%clk 00:09:06]} {[%emt 00:00:23]} 37.
c4 {[%clk 00:02:48]} {[%emt 00:00:28]} Nf4 {[%clk 00:08:34]} {[%emt 00:01:01]}
38. Re4 {[%clk 00:01:27]} {[%emt 00:02:00]} Qd6 {[%clk 00:04:27]} {[%emt
00:09:23]} 39. Re1 {[%clk 00:01:07]} Nd3 {[%clk 00:04:15]} 40. Rd1 {[%clk
00:01:16]} Qc5+ {[%clk 00:04:32]} 0-1

[Event "Régional Jeunes Occitanie 2024"]
[Site "L'Isle Jourdain, France"]
[Date "2024.02.24"]
[Round "7.5"]
[White "LAVAL, Nolan"]
[Black "ABELA, Ronan"]
[Result "1-0"]
[TimeControl "1h30 + 30s/cps"]
[WhiteElo "1454"]
[BlackElo "1295"]

1. e4 {[%clk 01:30:51]} c6 {[%clk 01:30:51]} 2. d4 {[%clk 01:31:17]} d5 {[%clk
01:31:14]} 3. Nc3 {[%clk 01:31:43]} dxe4 {[%clk 01:31:37]} 4. Nxe4 {[%clk
01:32:05]} Nf6 {[%clk 01:31:47]} 5. Nxf6+ {[%clk 01:32:27]} exf6 {[%clk
01:32:14]} 6. c3 {[%clk 01:32:36]} Bd6 {[%clk 01:32:37]} 7. Bd3 {[%clk
01:32:50]} O-O {[%clk 01:32:48]} 8. Ne2 {[%clk 01:32:05]} Re8 {[%clk 01:32:34]}
9. O-O {[%clk 01:32:18]} Qc7 {[%clk 01:32:11]} 10. Ng3 {[%clk 01:31:36]} Be6
{[%clk 01:31:43]} 11. Qc2 {[%clk 01:28:10]} h6 {[%clk 01:26:46]} 12. Bd2 {[%clk
01:26:32]} Nd7 {[%clk 01:26:54]} 13. Rfe1 {[%clk 01:25:05]} Rab8 {[%clk
01:25:19]} 14. c4 {[%clk 00:54:18]} Nf8 {[%clk 01:19:55]} 15. b3 {[%clk
00:40:04]} Bd7 {[%clk 01:15:06]} 16. Bc3 {[%clk 00:35:42]} Ne6 {[%clk
01:14:41]} 17. Rad1 {[%clk 00:34:03]} Nf4 {[%clk 01:12:21]} 18. Be4 {[%clk
00:32:44]} b5 {[%clk 01:09:06]} 19. c5 {[%clk 00:31:07]} Bf8 {[%clk 01:09:05]}
20. Qd2 {[%clk 00:29:27]} Be6 {[%clk 01:08:26]} 21. Ba5 {[%clk 00:28:43]} Qb7
{[%clk 01:07:07]} {[%emt 00:01:40]} 22. Qxf4 {[%clk 00:28:32]} {[%emt
00:00:41]} b4 {[%clk 01:07:26]} {[%emt 00:00:11]} 23. Qc7 {[%clk 00:27:20]}
{[%emt 00:01:40]} Qa6 {[%clk 01:07:30]} {[%emt 00:00:27]} 24. Bd3 {[%clk
00:27:02]} {[%emt 00:00:47]} Qc8 {[%clk 01:07:04]} {[%emt 00:00:58]} 25. Qxc8
{[%clk 00:26:58]} {[%emt 00:00:34]} Rexc8 {[%clk 01:06:22]} {[%emt 00:01:12]}
26. Ba6 {[%clk 00:26:40]} {[%emt 00:00:47]} Re8 {[%clk 01:06:40]} {[%emt
00:00:13]} 27. Bc7 {[%clk 00:26:50]} {[%emt 00:00:19]} Rbd8 {[%clk 01:05:37]}
{[%emt 00:01:34]} 28. Bxd8 {[%clk 00:26:53]} {[%emt 00:00:27]} Rxd8 {[%clk
01:06:03]} {[%emt 00:00:04]} 29. Bc4 {[%clk 00:26:59]} {[%emt 00:00:24]} Bxc4
{[%clk 01:05:59]} {[%emt 00:00:34]} 30. bxc4 {[%clk 00:27:23]} {[%emt
00:00:06]} a5 {[%clk 01:06:20]} {[%emt 00:00:09]} 31. Nf1 {[%clk 00:26:36]}
{[%emt 00:01:16]} g6 {[%clk 01:06:29]} {[%emt 00:00:21]} 32. h3 {[%clk
00:26:09]} {[%emt 00:00:58]} Bg7 {[%clk 01:06:46]} {[%emt 00:00:14]} 33. Nh2
{[%clk 00:26:29]} {[%emt 00:00:09]} f5 {[%clk 01:07:09]} {[%emt 00:00:07]} 34.
Nf3 {[%clk 00:26:42]} {[%emt 00:00:16]} a4 {[%clk 01:07:20]} {[%emt 00:00:20]}
35. Re7 {[%clk 00:26:37]} {[%emt 00:00:31]} Ra8 {[%clk 01:06:47]} {[%emt
00:01:05]} 36. Ne5 {[%clk 00:26:25]} {[%emt 00:02:50]} b3 {[%clk 01:06:37]} 37.
axb3 {[%clk 00:26:28]} axb3 {[%clk 01:06:59]} 38. Rb7 {[%clk 00:26:12]} Rd8
{[%clk 01:05:52]} {[%emt 00:01:30]} 39. Nxc6 {[%clk 00:26:15]} {[%emt
00:00:27]} 1-0